bitfinex-derivatives/quotes_ETHF0:USTF0_20251003
["timestamp","ask_amount","ask_price","bid_price","bid_amount"]
[1759503845117,3.665,4473.3,4473.2,0.8557]
[1759503845812,0.2322,4473.3,4473.2,0.8557]
[1759503846119,0.225,4473.5,4473.4,0.4844]
[1759503846318,0.4572,4473.5,4473.4,0.8557]
[1759503846516,0.2322,4473.5,4473.4,0.8557]
[1759503846719,0.64497,4473.3,4473.2,0.6227]
[1759503846919,0.87717,4473.3,4473.2,0.8557]
[1759503847122,1.24909,4473.1,4473.0,0.6227]
[1759503847519,0.87719,4473.1,4473.0,1.0014]
[1759503848019,0.4751,4473.1,4473.0,1.0014]
[1759503848624,1.072,4473.1,4473.0,1.0014]
[1759503848820,1.072,4473.1,4473.0,0.8557]
[1759503849022,1.072,4473.1,4473.0,0.6227]
[1759503849426,1.55745988,4473.1,4473.0,0.6227]
[1759503849825,1.33245988,4473.1,4473.0,0.6227]
[1759503850024,1.55745988,4473.1,4473.0,0.6227]
[1759503850527,1.55745988,4473.1,4473.0,1.0014]
[1759503850528,0.96055988,4473.1,4473.0,1.0014]
[1759503850734,0.71045988,4473.1,4473.0,1.0014]
[1759503851030,0.225,4473.1,4473.0,1.0014]
[1759503851330,0.87716,4473.4,4473.3,0.2514]
[1759503851529,0.2322,4473.1,4473.0,0.1457]
[1759503851822,0.485917,4473.2,4473.0,1.0322]
[1759503852028,0.485917,4473.1,4473.0,1.0322]
[1759503852326,0.2322,4473.2,4473.1,0.8557]
[1759503852527,0.71828118,4473.2,4473.1,0.8557]
[1759503852929,0.71108118,4473.2,4473.1,0.8557]
[1759503854129,0.48608118,4473.2,4473.1,0.8557]
[1759503854931,0.6221,4473.8,4473.7,0.8557]
[1759503855131,0.6148,4473.2,4473.1,0.6227]
[1759503855426,1.33329344,4473.2,4473.1,0.6227]
[1759503856225,0.847,4472.9,4472.8,3.8305]
[1759503856423,1.33329344,4472.9,4472.8,3.8305]
[1759503857728,0.96139344,4472.9,4472.8,4.0635]
[1759503858937,1.73540344,4472.9,4472.5,0.1457]
[1759503859134,0.847,4472.4,4472.3,3.2078]
[1759503859334,1.24916,4472.3,4472.2,0.00282175]
[1759503859529,1.96082946,4472.3,4472.2,0.00282175]
[1759503859925,0.847,4471.6,4471.5,0.3713]
[1759503860134,0.847,4471.6,4471.5,1.0014]
[1759503860135,1.18684514,4471.6,4471.5,1.0014]
[1759503860828,1.55874514,4471.6,4471.5,1.0014]
[1759503861029,1.56126751,4471.6,4471.5,1.00335479]
[1759503861225,1.18936751,4471.6,4471.5,1.00335479]
[1759503861534,0.72146751,4471.6,4471.5,1.00335479]
[1759503862234,1.33626751,4471.6,4471.5,0.00195479]
[1759503862438,1.18936751,4471.6,4471.5,1.00335479]
[1759503863235,1.33626751,4471.6,4471.5,0.00195479]
[1759503863528,0.96436751,4471.6,4471.5,1.00335479]
[1759503863839,0.96436751,4471.6,4471.5,4.21115479]
[1759503863840,0.00252237,4471.6,4471.5,4.21115479]
[1759503864632,0.00252237,4471.6,4471.5,9.21115479]
[1759503864940,0.00252237,4471.6,4471.5,4.21115479]
[1759503866229,4.0548,4472.8,4472.7,0.6227]
[1759503866430,4.61489233,4472.8,4472.7,0.6227]
[1759503866629,0.3659,4472.1,4471.7,0.3605]
[1759503866830,0.4685,4471.8,4471.7,0.8512]
[1759503867036,0.47093361,4471.8,4471.7,0.8512]
[1759503868629,0.23953361,4471.8,4471.7,0.8512]
[1759503868939,0.3659,4471.7,4471.6,3.2078]
[1759503869236,0.8344,4471.7,4471.6,3.8113]
[1759503869929,0.8344,4471.7,4471.6,3.5683]
[1759503870333,0.8344,4471.7,4471.6,3.2078]
[1759503871128,0.4685,4471.7,4471.5,0.00195479]
[1759503871335,1.31895267,4471.6,4471.5,0.00195479]
[1759503871636,1.31895267,4471.6,4471.5,0.60545479]
[1759503872432,0.8344,4471.6,4471.5,0.75575479]
[1759503872737,0.4685,4471.6,4471.5,0.99215479]
[1759503872930,0.6935,4471.6,4471.5,0.99215479]
[1759503873129,0.4685,4471.6,4471.5,0.99215479]
[1759503873330,0.6935,4471.6,4471.5,0.99215479]
[1759503873731,0.4802,4471.6,4471.5,0.99215479]
[1759503874740,0.8344,4471.6,4471.5,0.84185479]
[1759503875039,0.8344,4471.6,4471.5,0.60545479]
[1759503875438,0.4802,4471.6,4471.5,0.99215479]
[1759503875639,0.00243361,4471.8,4471.7,0.4684]
[1759503875940,0.47953361,4471.8,4471.7,0.8338]
[1759503876135,1.07683361,4471.8,4471.7,0.3654]
[1759503876334,1.07683361,4471.8,4471.7,0.5974]
[1759503876741,0.85183361,4471.8,4471.7,0.5974]
[1759503877047,1.07683361,4471.8,4471.7,0.5974]
[1759503877846,1.47904361,4471.8,4471.7,0.5974]
[1759503878043,1.47904361,4471.8,4471.7,0.3654]
[1759503878348,1.25162,4471.6,4471.5,0.00195479]
[1759503879245,1.25162,4471.6,4471.0,3.3535]
[1759503879246,0.8494,4470.6,4470.5,3.2078]
[1759503879552,0.2521,4470.2,4470.1,0.4684]
[1759503879750,0.4952,4470.2,4470.1,0.8338]
[1759503880050,0.7202,4470.2,4470.1,0.8338]
[1759503880243,1.0744,4470.2,4470.1,0.3680709]
[1759503880445,1.0744,4470.2,4470.1,0.0026709]
[1759503880745,6.0744,4470.2,4470.1,0.0026709]
[1759503881458,0.4952,4469.6,4469.5,3.3581]
[1759503881748,1.0744,4469.6,4469.5,3.9555]
[1759503882052,0.7202,4469.6,4469.5,4.1919]
[1759503882252,0.225,4469.6,4469.5,4.1919]
[1759503882449,0.2521,4469.6,4469.5,3.82871858]
[1759503882846,0.8494,4470.3,4469.5,3.36031858]
[1759503883046,0.8494,4470.3,4470.2,0.5974]
[1759503883249,0.40235,4470.2,4469.6,0.3654]
[1759503883442,0.4952,4470.3,4470.2,0.232]
[1759503883747,0.7202,4470.3,4470.2,0.8338]
[1759503883948,0.4952,4470.3,4470.2,0.8338]
[1759503884148,0.7202,4470.3,4470.2,0.8338]
[1759503884345,1.2518,4469.7,4469.6,0.5974]
[1759503884546,0.8494,4469.6,4469.5,0.00221858]
[1759503885142,0.8494,4469.6,4468.1,0.3654]
[1759503885143,0.3542,4468.9,4468.1,0.3654]
[1759503885352,3.4599,4468.7,4468.6,0.8338]
[1759503886153,3.6849,4468.7,4468.6,0.83663198]
[1759503886354,3.928,4468.7,4468.6,0.83663198]
[1759503886853,3.703,4468.7,4468.6,0.83663198]
[1759503887046,3.928,4468.7,4468.6,0.83663198]
[1759503887248,4.2822,4468.7,4468.6,0.00283198]
[1759503887449,1.38925,4468.0,4467.3,0.3654]
[1759503887747,3.928,4468.0,4467.9,0.61978213]
[1759503887951,35.0303,4468.5,4468.0,0.1503]
[1759503887952,3.2078,4468.5,4468.0,0.1503]
[1759503888149,0.4771,4468.4,4468.3,0.5974]
[1759503888354,0.47972804,4468.4,4468.3,0.59986532]
[1759503888552,0.72282804,4468.4,4468.3,0.83626532]
[1759503888954,1.07702804,4468.4,4468.3,0.00246532]
[1759503890753,0.9847,4468.0,4467.9,0.02238213]
[1759503890947,4.4175,4468.0,4466.8,0.3654]
[1759503891153,0.4952,4466.9,4466.8,0.5974]
[1759503891658,3.2078,4467.5,4467.4,0.8338]
[1759503891857,0.40254,4468.1,4467.5,0.1503]
[1759503892060,0.225,4468.0,4467.5,0.1503]
[1759503892354,0.75674,4468.2,4467.6,0.3654]
[1759503892556,0.225,4468.1,4467.6,0.3654]
[1759503892761,3.21042804,4468.4,4467.6,0.3654]
[1759503892958,0.225,4468.3,4468.1,0.3654]
[1759503893265,0.225,4468.2,4467.6,0.76798]
[1759503893459,3.21042804,4468.4,4467.5,0.1503]
[1759503893659,0.225,4468.3,4468.0,0.1503]
[1759503893857,3.21042804,4468.4,4468.2,0.40253]
[1759503894057,0.225,4468.3,4468.1,0.3654]
[1759503894257,0.5792,4468.3,4468.0,0.1503]
[1759503894466,0.4952,4468.2,4468.1,0.5974]
[1759503894655,0.8494,4468.2,4467.5,0.1503]
[1759503894961,0.8494,4468.2,4467.6,0.3654]
[1759503895163,0.8494,4468.2,4467.6,0.76798]
[1759503895463,0.8494,4468.2,4467.6,0.3654]
[1759503895658,0.3542,4468.2,4467.6,0.3654]
[1759503895854,0.2521,4467.9,4467.8,0.8338]
[1759503896060,0.4771,4467.9,4467.8,0.8338]
[1759503896559,3.21042804,4468.4,4467.8,0.8338]
[1759503896858,0.7202,4468.3,4468.2,0.5974]
[1759503897057,0.7202,4468.3,4468.2,0.8338]
[1759503897362,0.4771,4468.3,4468.2,0.8338]
[1759503897864,0.00262804,4468.4,4468.3,1.23632]
[1759503898257,3.2078,4469.6,4469.5,0.1503]
[1759503898455,3.757,4469.6,4469.5,0.9841]
[1759503898764,4.51361,4469.6,4469.0,3.7235]
[1759503898965,0.2521,4469.1,4469.0,4.1919]
[1759503899260,0.47978605,4469.1,4469.0,4.1919]
[1759503899564,0.47978605,4469.1,4469.0,0.9841]
[1759503901061,0.00268605,4469.1,4469.0,0.9841]
[1759503901462,0.4952,4468.3,4468.2,3.8052]
[1759503901663,0.7202,4468.3,4468.2,0.5974]
[1759503902264,0.7202,4468.3,4468.2,0.8338]
[1759503902265,0.2521,4468.3,4468.2,0.8338]
[1759503902564,0.4771,4468.3,4468.2,0.8338]
[1759503902763,1.0707,4468.3,4468.2,0.8338]
[1759503902963,0.2318,4467.8,4467.7,0.8077]
[1759503903267,0.4681,4467.8,4467.7,0.8077]
[1759503903453,0.8254,4467.8,4467.7,0.8077]
[1759503903660,0.2318,4467.8,4467.7,0.8077]
[1759503903956,0.225,4467.9,4467.8,0.8077]
[1759503904157,0.4568,4467.9,4467.8,0.8077]
[1759503904361,0.4681,4467.6,4467.5,0.7297]
[1759503904663,0.4681,4467.6,4467.5,0.958]
[1759503904864,0.2318,4467.6,4467.5,0.958]
[1759503905169,0.6931,4467.9,4467.8,0.5794]
[1759503906065,0.8254,4467.5,4467.4,0.00286188]
[1759503906364,4.5162006,4467.5,4467.4,0.00286188]
[1759503906560,4.2582,4467.5,4467.4,0.00286188]
[1759503906766,3.10212942,4467.5,4467.4,1.21316188]
[1759503906965,3.4396,4469.0,4468.9,0.231]
[1759503907161,4.56119679,4469.0,4468.9,0.5794]
[1759503907361,0.2318,4468.6,4468.5,0.5958]
[1759503907662,0.4681,4468.6,4468.5,0.5958]
[1759503907859,0.4681,4468.6,4468.0,0.1365]
[1759503907860,0.2318,4468.1,4468.0,0.4849]
[1759503908061,0.2318,4468.1,4468.0,0.9442]
[1759503908666,0.225,4468.1,4468.0,0.9442]
[1759503908867,0.40249,4468.7,4468.3,0.4593]
[1759503909069,0.48376128,4468.6,4468.5,0.9442]
[1759503909268,0.70876128,4468.6,4468.5,0.9442]
[1759503909668,1.17686128,4468.6,4468.5,0.8077]
[1759503909968,1.17686128,4468.6,4468.0,0.1365]
[1759503909969,0.4681,4468.1,4468.0,0.5794]
[1759503910171,0.95186128,4468.1,4468.0,0.5794]
[1759503910370,1.17686128,4468.1,4468.0,0.9442]
[1759503912366,1.17686128,4468.1,4468.0,1.34675]
[1759503912566,1.17686128,4468.1,4468.0,0.9442]
[1759503913267,0.95186128,4468.1,4468.0,0.9442]
[1759503913570,1.17686128,4468.1,4468.0,0.9442]
[1759503915375,1.53416128,4468.1,4468.0,0.8077]
[1759503915869,1.17686128,4468.1,4468.0,0.8077]
[1759503916061,1.17686128,4468.1,4468.0,0.9442]
[1759503916261,0.70876128,4468.1,4468.0,0.9442]
[1759503917374,0.94056128,4468.1,4468.0,0.9442]
[1759503917579,0.70876128,4468.1,4468.0,0.9442]
[1759503917768,0.94056128,4468.1,4468.0,0.9442]
[1759503917968,1.17686128,4468.1,4468.0,0.7159]
[1759503918479,0.70876128,4468.1,4468.0,0.9442]
[1759503921579,0.70876128,4468.1,4468.0,1.34675]
[1759503921981,0.70876128,4468.1,4468.0,0.9442]
[1759503922874,0.94056128,4468.1,4468.0,0.9442]
[1759503923074,1.17686128,4468.1,4468.0,0.9442]
[1759503923279,1.53416128,4468.1,4468.0,0.9442]
[1759503923482,1.17686128,4468.1,4468.0,0.9442]
[1759503923678,1.17686128,4468.1,4468.0,1.34675]
[1759503923878,0.70876128,4468.1,4468.0,1.34675]
[1759503924079,0.48376128,4468.1,4468.0,1.34675]
[1759503924471,0.225,4468.2,4468.1,1.21024]
[1759503924680,0.71095623,4468.2,4468.1,1.21024]
[1759503925383,1.17905623,4468.2,4468.1,0.8077]
[1759503925979,1.17905623,4468.2,4468.1,1.21024]
[1759503926380,0.94275623,4468.2,4468.1,1.21024]
[1759503927683,0.71095623,4468.2,4468.1,1.21024]
[1759503928583,0.93855623,4468.2,4468.1,1.21024]
[1759503928784,0.93855623,4468.2,4468.1,0.8077]
[1759503929179,0.93855623,4468.2,4468.1,1.21024]
[1759503930682,0.93855623,4468.2,4468.1,0.8077]
[1759503930885,0.93855623,4468.2,4468.1,1.21024]
[1759503931085,1.17135623,4468.2,4468.1,1.21024]
[1759503932384,1.51145623,4468.2,4468.1,0.8077]
[1759503932684,0.71095623,4468.2,4468.1,1.21024]
[1759503933282,0.93645623,4468.2,4468.1,0.8077]
[1759503933482,1.33898623,4468.2,4468.1,0.8077]
[1759503933688,1.33898623,4468.2,4468.1,0.3484]
[1759503933689,1.91438623,4468.2,4468.1,0.3484]
[1759503933988,1.91438623,4468.2,4468.1,0.5707]
[1759503934383,1.91438623,4468.2,4468.1,0.3484]
[1759503934691,1.91438623,4468.2,4468.1,0.5707]
[1759503935186,1.91438623,4468.2,4468.1,1.21584]
[1759503935187,1.57428623,4468.2,4468.1,1.21584]
[1759503935485,1.57428623,4468.2,4468.1,0.8133]
[1759503936089,1.57428623,4468.2,4468.1,1.21584]
[1759503936988,0.48595623,4468.2,4468.1,1.21584]
[1759503937290,3.671,4469.0,4468.4,0.40251]
[1759503937494,1.51275257,4468.9,4468.8,0.555]
[1759503938089,1.51275257,4468.9,4468.8,0.3327]
[1759503938287,1.51275257,4468.9,4468.5,0.1444]
[1759503938590,0.8009,4468.7,4468.6,0.555]
[1759503938784,1.28775257,4468.7,4468.6,0.555]
[1759503939990,0.8009,4468.6,4468.5,1.2001]
[1759503940185,1.17265257,4468.6,4468.5,0.942]
[1759503940485,0.94765257,4468.6,4468.5,1.3445]
[1759503940685,0.48685257,4468.6,4468.5,4.5523]
[1759503941088,0.00268605,4469.1,4469.0,0.40246]
[1759503941292,0.00268605,4469.1,4469.0,1.34446]
[1759503941485,3.5479,4470.0,4469.4,0.7976]
[1759503941690,3.5479,4470.0,4469.1,1.00613]
[1759503941691,0.6858,4469.9,4469.8,1.19998]
[1759503941885,3.5479,4470.0,4469.9,0.555]
[1759503941886,3.2078,4470.0,4469.9,0.555]
[1759503942088,0.4608,4470.3,4470.2,0.7976]
[1759503942294,0.6858,4470.3,4470.2,0.7976]
[1759503942494,0.68866158,4470.3,4470.2,0.7976]
[1759503943084,1.02876158,4470.3,4470.2,0.7976]
[1759503943485,1.02876158,4470.3,4470.2,0.555]
[1759503944089,0.68866158,4470.3,4470.1,0.3327]
[1759503944294,0.68866158,4470.3,4470.0,0.54677]
[1759503944295,0.3401,4470.1,4470.0,0.40237]
[1759503944495,0.8009,4470.1,4470.0,0.40237]
[1759503944689,0.8009,4470.1,4470.0,0.95737]
[1759503945488,0.8009,4470.1,4470.0,1.10177]
[1759503945694,0.8009,4470.1,4470.0,1.34437]
[1759503945997,0.4608,4470.1,4470.0,1.34437]
[1759503946301,0.22786158,4470.3,4470.2,0.7976]
[1759503946502,0.45336158,4470.3,4470.2,0.7976]
[1759503946801,0.68866158,4470.3,4470.2,0.7976]
[1759503947709,1.02876158,4470.3,4470.2,0.7976]
[1759503948202,0.22836158,4470.3,4470.2,0.7976]
[1759503948397,0.00286158,4470.3,4470.2,0.7976]
[1759503948695,0.00286158,4470.3,4470.2,4.0054]
[1759503948900,0.00286158,4470.3,4470.2,9.0054]
[1759503949993,0.40222,4471.7,4471.6,0.2223]
[1759503950190,1.20312,4471.7,4471.0,0.1444]
[1759503950403,0.4608,4471.2,4471.1,0.7976]
[1759503950696,0.225,4471.6,4471.5,0.2223]
[1759503950897,0.46305999,4471.6,4471.5,0.70162511]
[1759503951096,0.45275999,4471.6,4471.5,0.94422511]
[1759503951301,0.22775999,4471.6,4471.5,0.94422511]
[1759503951600,0.00225999,4471.6,4471.5,0.94422511]
[1759503953895,0.00225999,4471.6,4471.5,5.94422511]
[1759503956509,1.02728,4472.9,4471.5,5.94422511]
[1759503956510,4.0307,4472.9,4472.8,0.3327]
[1759503956705,4.0307,4472.9,4472.5,0.1444]
[1759503956706,0.4608,4472.6,4472.5,0.3667]
[1759503957006,0.4608,4472.6,4472.5,0.6093]
[1759503957203,0.4608,4472.6,4472.5,0.942]
[1759503957404,0.46367628,4472.6,4472.5,0.942]
[1759503957603,0.00287628,4472.6,4472.5,0.942]
[1759503957801,0.22837628,4472.6,4472.5,0.942]
[1759503959204,0.00287628,4472.6,4472.5,0.942]
[1759503959607,0.00287628,4472.6,4472.5,5.942]
[1759503960308,0.00287628,4472.6,4472.5,0.942]
[1759503960503,0.46367628,4472.6,4472.5,0.942]
[1759503960809,0.4608,4472.1,4472.0,0.942]
[1759503961200,0.225,4472.4,4472.3,0.2223]
[1759503961399,0.225,4472.4,4472.3,0.7976]
[1759503961604,0.22837628,4472.6,4472.5,0.942]
[1759503961904,0.46887628,4472.6,4472.5,0.942]
[1759503962109,1.02837628,4472.6,4472.5,0.7976]
[1759503962708,1.02837628,4472.6,4472.5,0.9402]
[1759503962909,0.22787628,4472.6,4472.5,0.9402]
[1759503963110,0.46887628,4472.6,4472.5,0.9402]
[1759503963306,0.40218,4472.1,4472.0,0.711]
[1759503963505,0.40222,4471.6,4471.5,0.60972511]
[1759503963806,0.64322,4471.6,4471.5,0.60972511]
[1759503964020,0.40219,4472.0,4471.6,0.3432]
[1759503964308,1.00821628,4472.6,4471.5,0.14662511]
[1759503964309,0.00287628,4472.6,4472.0,0.9489]
[1759503964508,0.00287628,4472.6,4472.5,1.35104]
[1759503964808,0.00287628,4472.6,4472.5,4.55884]
[1759503966106,0.00287628,4472.6,4472.5,4.1567]
[1759503966312,0.00287628,4472.6,4472.5,0.9489]
[1759503967317,0.332,4473.7,4472.5,0.9489]
[1759503967318,1.59227086,4475.4,4475.0,0.1426]
[1759503967611,0.1344,4475.5,4474.6,3.2078]
[1759503967804,3.2078,4475.1,4474.1,3.551]
[1759503968005,0.332,4474.9,4474.1,3.551]
[1759503968205,0.332,4474.4,4474.1,0.34557234]
[1759503968411,3.2078,4474.5,4474.1,0.34557234]
[1759503968609,0.332,4474.2,4474.1,0.34557234]
[1759503968910,0.332,4474.2,4474.1,0.00237234]
[1759503969111,0.332,4474.2,4474.1,0.34557234]
[1759503969707,0.225,4474.2,4474.1,0.34557234]
[1759503970816,0.557,4474.2,4474.1,0.34557234]
[1759503971526,1.03047055,4474.2,4474.1,0.00237234]
[1759503971912,1.49897055,4474.2,4474.1,0.00237234]
[1759503972611,0.40204,4473.7,4473.6,0.3432]
[1759503972815,0.40204,4473.7,4471.5,0.1426]
[1759503972816,0.4685,4473.2,4472.7,0.3432]
[1759503973015,0.4685,4472.8,4472.7,0.5666]
[1759503973516,0.8005,4472.8,4472.7,0.3432]
[1759503973713,3.2078,4473.2,4473.1,0.2234]
[1759503973912,3.6738,4473.9,4473.8,0.8063]
[1759503974115,4.14744839,4473.9,4473.8,0.8063]
[1759503974807,4.70694839,4473.9,4473.8,0.5666]
[1759503975011,0.241,4473.6,4473.5,0.7092]
[1759503975213,0.64304,4473.6,4473.5,0.7092]
[1759503975516,1.34452748,4473.6,4473.5,0.7092]
[1759503976618,1.34452748,4473.6,4473.5,0.9489]
[1759503977416,1.34452748,4473.6,4473.5,0.8063]
[1759503977719,1.67652748,4473.6,4473.5,0.5666]
[1759503978113,0.8005,4472.8,4472.7,0.34543198]
[1759503978313,0.6935,4472.8,4472.7,0.56883198]
[1759503978522,0.225,4472.8,4472.7,0.80853198]
[1759503980414,0.70055401,4472.8,4472.7,0.80853198]
[1759503980921,0.225,4472.8,4472.7,0.80853198]
[1759503981416,0.69866544,4472.8,4472.7,0.80853198]
[1759503981620,0.225,4472.8,4472.7,0.80853198]
[1759503982324,0.69877964,4472.8,4472.7,0.80853198]
[1759503983022,0.47377964,4472.8,4472.7,0.80853198]
[1759503984222,1.27427964,4472.8,4472.7,0.56883198]
[1759503984522,1.27427964,4472.8,4472.7,0.34543198]
[1759503984723,1.27427964,4472.8,4472.7,0.00223198]
[1759503986016,1.27427964,4472.8,4472.7,0.56883198]
[1759503986216,0.94227964,4472.8,4472.7,0.56883198]
[1759503986421,0.69877964,4472.8,4472.7,0.80853198]
[1759503986611,0.47377964,4472.8,4472.7,0.80853198]
[1759503986818,0.225,4472.8,4472.7,0.80853198]
[1759503987020,0.69877964,4472.8,4472.7,0.80853198]
[1759503987618,1.10089964,4472.8,4472.7,0.80853198]
[1759503988325,0.87589964,4472.8,4472.7,0.80853198]
[1759503988518,1.10029964,4472.8,4472.7,0.80853198]
[1759503991226,0.69817964,4472.8,4472.7,0.80853198]
[1759503991426,0.69877964,4472.8,4472.7,0.80853198]
[1759503991626,1.10089964,4472.8,4472.7,0.80853198]
[1759503991920,1.32529964,4472.8,4472.7,0.80853198]
[1759503993326,1.54839964,4472.8,4472.7,0.80853198]
[1759503994326,1.32529964,4472.8,4472.7,0.80853198]
[1759503995625,1.89239964,4472.8,4472.7,0.34543198]
[1759503996129,1.89239964,4472.8,4472.7,0.00223198]
[1759503996527,1.89239964,4472.8,4472.7,0.57573198]
[1759503997131,1.15077964,4472.8,4472.7,0.81143198]
[1759503997433,1.55289964,4472.8,4472.7,0.81143198]
[1759503997730,1.89239964,4472.8,4472.7,0.81143198]
[1759503997926,1.89239964,4472.8,4472.7,0.00223198]
[1759503998535,6.89239964,4472.8,4472.7,0.00223198]
[1759503999137,0.4684,4471.6,4471.5,0.9518]
[1759503999434,0.225,4471.7,4471.6,0.86862]
[1759503999632,0.225,4471.7,4471.6,1.21142]
[1759504000034,0.22705465,4471.7,4471.6,1.21381366]
[1759504000422,0.00205465,4471.7,4471.6,1.21381366]
[1759504000628,0.00205465,4471.7,4471.6,6.21381366]
[1759504000932,3.85071,4472.9,4472.8,0.8092]
[1759504001139,4.55046913,4472.9,4472.8,0.8092]
[1759504001724,4.55205143,4472.9,4472.8,0.8092]
[1759504001928,4.32705143,4472.9,4472.8,0.8092]
[1759504002128,4.55205143,4472.9,4472.8,0.8092]
[1759504002532,4.32705143,4472.9,4472.8,0.8092]
[1759504002736,4.55205143,4472.9,4472.8,0.8092]
[1759504003537,4.77965143,4472.9,4472.8,0.8092]
[1759504003835,0.87053,4472.6,4472.5,0.5966]
[1759504004134,1.90978913,4472.6,4472.5,0.2307]
[1759504004531,0.40217,4472.2,4472.0,0.1302]
[1759504004733,0.64297,4472.2,4472.1,0.8092]
[1759504004932,0.2408,4472.2,4472.1,0.8092]
[1759504005234,0.2276,4471.9,4471.7,0.2307]
[1759504005534,0.2408,4471.8,4471.7,0.8092]
[1759504006741,3.2078,4472.1,4471.7,0.8092]
[1759504007036,3.6762,4472.1,4472.0,0.9394]
[1759504007233,4.37632427,4472.1,4472.0,0.9394]
[1759504007438,4.71582427,4472.1,4472.0,0.9394]
[1759504008047,4.71582427,4472.1,4472.0,0.5735]
[1759504008234,4.71582427,4472.1,4471.6,0.00239366]
[1759504008439,1.21011,4471.8,4471.7,0.5735]
[1759504008636,0.6934,4471.8,4471.7,0.8092]
[1759504008936,3.9012,4472.1,4472.0,0.9394]
[1759504009132,3.9012,4472.1,4471.6,0.00239366]
[1759504009133,0.4684,4471.8,4471.7,0.5735]
[1759504009327,0.4684,4471.8,4471.7,0.8092]
[1759504009637,3.6736,4472.1,4472.0,0.9394]
[1759504009833,4.14860875,4472.1,4472.0,0.9394]
[1759504010037,4.37620875,4472.1,4472.0,0.9394]
[1759504010341,4.37618379,4472.1,4472.0,0.9394]
[1759504010643,4.71568379,4472.1,4472.0,0.9394]
[1759504010939,5.11786379,4472.1,4472.0,0.5735]
[1759504011436,3.2078,4472.7,4472.0,0.9394]
[1759504011637,3.2078,4472.7,4472.6,0.8092]
[1759504011831,3.90787082,4472.7,4472.6,0.8092]
[1759504012241,4.31000082,4472.7,4472.6,0.8092]
[1759504012442,4.77840082,4472.7,4472.6,0.8092]
[1759504012734,4.89290082,4472.7,4472.6,0.8092]
[1759504012940,3.90787082,4472.7,4472.6,0.8092]
[1759504013137,3.90787082,4472.7,4472.6,1.21133]
[1759504013542,4.14867082,4472.7,4472.6,0.8092]
[1759504013744,3.92367082,4472.7,4472.6,0.8092]
[1759504013947,3.90787082,4472.7,4472.6,1.21133]
[1759504014643,3.4328,4472.7,4472.6,1.21133]
[1759504015039,3.4328,4472.7,4472.6,0.8092]
[1759504015643,0.225,4472.7,4472.6,1.21133]
[1759504015845,0.0015823,4472.9,4472.8,0.8092]
[1759504016738,0.0015823,4472.9,4472.8,5.8092]
[1759504017139,3.2078,4473.9,4472.8,5.8092]
[1759504017140,3.2078,4473.9,4473.7,0.40203]
[1759504017450,3.6736,4473.9,4473.8,0.8092]
[1759504017648,4.37594427,4473.9,4473.8,0.8092]
[1759504018249,0.4684,4473.4,4473.3,0.5735]
[1759504018454,0.40209,4473.1,4473.0,0.1302]
[1759504018746,0.87049,4473.1,4473.0,0.3609]
[1759504018944,1.20999,4473.1,4473.0,0.2307]
[1759504019142,0.87053,4472.7,4472.6,0.5735]
[1759504019343,0.87053,4472.7,4472.6,0.8092]
[1759504020442,0.3395,4472.9,4472.6,0.8092]
[1759504020646,0.87049,4473.1,4473.0,0.9394]
[1759504020947,3.2078,4473.4,4473.1,0.3428]
[1759504021142,0.6934,4473.8,4473.7,0.8092]
[1759504021446,1.16795523,4473.8,4473.7,0.8092]
[1759504021648,0.94295523,4473.8,4473.7,0.8092]
[1759504021850,1.16795523,4473.8,4473.7,0.8092]
[1759504022048,1.49465523,4473.8,4473.5,0.1302]
[1759504022241,0.2203,4473.4,4473.3,0.5704]
[1759504022444,0.4527,4473.4,4473.3,0.5704]
[1759504022746,0.2203,4473.1,4473.0,0.3629]
[1759504022941,0.2203,4473.1,4473.0,0.9248]
[1759504023552,0.4527,4473.1,4473.0,0.9248]
[1759504023751,0.2203,4473.1,4473.0,0.9248]
[1759504026446,0.4527,4473.1,4473.0,0.9248]
[1759504027052,0.2203,4473.1,4473.0,0.9248]
[1759504027247,0.7794,4473.1,4473.0,0.7946]
[1759504027448,0.2324,4472.7,4472.6,0.2327]
[1759504027649,0.85483,4472.7,4472.6,0.5704]
[1759504027848,0.85483,4472.7,4472.6,0.7946]
[1759504028353,0.4527,4472.7,4472.6,0.7946]
[1759504028743,0.2203,4472.7,4472.6,0.7946]
[1759504028948,3.4281,4473.4,4473.3,0.7946]
[1759504029145,3.2078,4473.4,4473.3,1.19667]
[1759504030444,0.40203,4473.8,4473.7,0.85894]
[1759504030644,0.62233,4473.8,4473.7,0.7946]
[1759504030849,0.85473,4473.8,4473.7,0.7946]
[1759504031050,0.4527,4473.2,4473.1,0.5704]
[1759504031357,0.7794,4473.2,4473.1,0.5704]
[1759504032760,0.85478,4473.2,4473.1,0.7946]
[1759504032951,1.18148,4473.2,4473.1,0.7946]
[1759504034755,1.18148,4473.2,4472.3,3.2078]
[1759504034756,0.40218,4472.1,4471.8,3.2078]
[1759504035055,0.40218,4472.1,4472.0,0.5704]
[1759504035056,1.18158,4472.1,4472.0,0.5704]
[1759504035251,0.2203,4472.1,4472.0,0.9312]
[1759504035457,1.11687,4473.0,4472.0,0.9312]
[1759504035458,1.33191,4473.2,4472.7,0.3377]
[1759504035655,0.91949088,4473.1,4473.0,0.9312]
[1759504035860,0.4453,4473.1,4473.0,0.9312]
[1759504036157,0.6777,4473.1,4473.0,0.9312]
[1759504037557,1.18382083,4473.9,4473.8,0.5704]
[1759504037761,1.65814676,4473.9,4473.8,0.5704]
[1759504038358,1.65814676,4473.9,4473.1,0.4569]
[1759504038359,0.85478,4473.2,4473.1,0.4569]
[1759504038659,0.2203,4472.6,4472.5,0.5935]
[1759504038962,0.7794,4473.1,4473.0,0.5704]
[1759504039461,0.4527,4473.1,4473.0,0.9312]
[1759504039661,0.85479,4473.1,4473.0,0.9312]
[1759504039965,0.4527,4473.1,4473.0,0.9312]